[Event "Gideon Japhet ACP Open 2018"]
[Site "Jerusalem"]
[Date "2018.07.06"]
[Round "7"]
[White "Birnboim, Nathan"]
[Black "Caspi, Israel"]
[Result "1-0"]
[ECO "B08"]
[WhiteElo "2353"]
[BlackElo "2479"]
[Annotator "ChessBase"]
[PlyCount "101"]
[EventDate "2018.07.01"]
[EventType "swiss"]
[EventCountry "ISR"]
[SourceTitle "playchess.com"]
[Source "ChessBase"]
[SourceQuality "1"]
[TimeControl "40/5400+30:1800+30"]

1. d4 {[%emt 0:00:00]} d6 {[%emt 0:00:00]} 2. e4 {[%emt 0:00:56]} Nf6 {[%emt 0:00:00]} 3. Nc3 {[%emt 0:00:06]} g6 {[%emt 0:00:47]} 4. Nf3 {[%emt 0:01:38]} Bg7 {[%emt 0:00:16]} 5. h3 {[%emt 0:00:55]} O-O {[%emt 0:00:49]} 6. Be3 {[%emt 0:00:03]} a6 {[%emt 0:01:36]} 7. a4 {[%emt 0:02:32]} Nc6 {[%emt 0:02:31]} 8. d5 {[%emt 0:06:17]} Nb4 {[%emt 0:03:14]} 9. a5 {[%emt 0:03:32]} e6 {[%emt 0:05:23]} 10. Bc4 {[%emt 0:14:47]} exd5 {[%emt 0:14:33]} 11. exd5 {[%emt 0:00:01]} c6 {[%emt 0:00:30]} 12. dxc6 {[%emt 0:00:45]} bxc6 {[%emt 0:01:39]} 13. O-O {[%emt 0:03:57]} Be6 {[%emt 0:03:30]} 14. Bxe6 {[%emt 0:05:00]} fxe6 {[%emt 0:02:33]} 15. Na4 {[%emt 0:02:02]} Nbd5 {[%emt 0:08:30]} 16. Bd2 {[%emt 0:00:53]} Ne4 {[%emt 0:01:17]} 17. Qe1 {[%emt 0:18:07]} Nxd2 {[%emt 0:02:01]} 18. Nxd2 {[%emt 0:03:33]} Nf4 {[%emt 0:03:54]} 19. Kh2 {[%emt 0:10:20]} Qxa5 {[%emt 0:09:43]} 20. g3 {[%emt 0:00:10]} Qf5 {[%emt 0:01:00]} 21. gxf4 Qxf4+ {[%emt 0:00:46]} 22. Kg2 {[%emt 0:01:18]} Be5 {[%emt 0:02:02]} 23. Rh1 {[%emt 0:00:09]} Qg5+ {[%emt 0:07:00]} 24. Kf1 {[%emt 0:00:07]} Rf4 {[%emt 0:00:21]} 25. Nc3 {[%emt 0:05:16]} Raf8 {[%emt 0:03:11]} 26. Nd1 {[%emt 0:02:56]} Bd4 {[%emt 0:10:51]} 27. Rh2 {[%emt 0:00:36]} Qg3 {[%emt 0:01:50]} 28. Rg2 {[%emt 0:00:08]} Qxh3 {[%emt 0:00:47]} 29. Rxa6 {[%emt 0:02:46]} Bxf2 {[%emt 0:10:14]} 30. Nxf2 {[%emt 0:00:18]} Rxf2+ {[%emt 0:01:26]} 31. Qxf2 {[%emt 0:00:07]} Rxf2+ {[%emt 0:00:04]} 32. Kxf2 {[%emt 0:00:04]} Qf5+ {[%emt 0:00:05]} 33. Nf3 {[%emt 0:02:17]} e5 {[%emt 0:01:06]} 34. Ra8+ {[%emt 0:00:14]} Kg7 {[%emt 0:00:10]} 35. Ra7+ {[%emt 0:00:03]} Kf6 {[%emt 0:00:57]} 36. Kg1 {[%emt 0:00:21]} e4 {[%emt 0:01:54]} 37. Nd4 {[%emt 0:00:05]} Qh3 {[%emt 0:00:17]} 38. Rf2+ {[%emt 0:00:26]} Kg5 {[%emt 0:00:54]} 39. Ra3 {[%emt 0:00:54]} Qd7 {[%emt 0:00:51]} 40. Rg3+ {[%emt 0:00:21]} Kh4 {[%emt 0:00:27]} 41. Ne2 {[%emt 0:32:43]} Qa7 {[%emt 0:30:22]} 42. Kg2 {[%emt 0:00:05]} g5 {[%emt 0:00:00]} 43. Rf6 {[%emt 0:00:00]} g4 {[%emt 0:00:00]} 44. Rxd6 {[%emt 0:00:00]} h5 {[%emt 0:00:00]} 45. Rc3 {[%emt 0:00:00]} Qa1 {[%emt 0:00:00]} 46. Ng3 {[%emt 0:00:00]} Kg5 {[%emt 0:00:00]} 47. Rc5+ {[%emt 0:00:00]} Kf4 {[%emt 0:00:00]} 48. Rf5+ {[%emt 0:00:00]} Ke3 {[%emt 0:00:00]} 49. Nf1+ {[%emt 0:00:00]} Ke2 {[%emt 0:00:00]} 50. Rf2+ {[%emt 0:00:00]} Ke1 {[%emt 0:00:00]} 51. Ng3 {[%emt 0:00:00]} 1-0

[Event "Gideon Japhet ACP Open 2018"]
[Site "Jerusalem"]
[Date "2018.07.06"]
[Round "7"]
[White "Zisman, Philip"]
[Black "Aizenberg, Benny"]
[Result "0-1"]
[ECO "A45"]
[WhiteElo "2293"]
[BlackElo "1887"]
[Annotator "ChessBase"]
[PlyCount "40"]
[EventDate "2018.07.01"]
[EventType "swiss"]
[EventCountry "ISR"]
[SourceTitle "playchess.com"]
[Source "ChessBase"]
[SourceQuality "1"]
[TimeControl "40/5400+30:1800+30"]

1. d4 {[%emt 0:00:00]} Nf6 {[%emt 0:00:00]} 2. Bg5 {[%emt 0:00:00]} Ne4 {[%emt 0:00:00]} 3. h4 {[%emt 0:00:00]} d5 {[%emt 0:00:04]} 4. Nd2 {[%emt 0:00:00]} Nxg5 {[%emt 0:00:49]} 5. hxg5 {[%emt 0:00:00]} Bf5 {[%emt 0:00:15]} 6. e3 {[%emt 0:00:51]} e6 {[%emt 0:00:18]} 7. f4 {[%emt 0:01:27]} c5 {[%emt 0:00:23]} 8. c3 {[%emt 0:01:16]} Nc6 {[%emt 0:00:20]} 9. Ngf3 {[%emt 0:00:14]} Bd6 {[%emt 0:00:39]} 10. dxc5 {[%emt 0:03:33]} Bxc5 {[%emt 0:00:06]} 11. Nd4 {[%emt 0:00:02]} Bg6 {[%emt 0:02:04]} 12. Bb5 {[%emt 0:02:05]} Qb6 {[%emt 0:01:44]} 13. Qa4 {[%emt 0:00:31]} O-O {[%emt 0:01:22]} 14. N2b3 {[%emt 0:04:14]} e5 {[%emt 0:07:03]} 15. Bxc6 {[%emt 0:05:40]} exd4 {[%emt 0:01:06]} 16. exd4 {[%emt 0:04:50]} Bd6 {[%emt 0:01:45]} 17. Bxd5 {[%emt 0:01:35]} Rae8+ {[%emt 0:03:04]} 18. Kf2 {[%emt 0:01:06]} Bxf4 {[%emt 0:00:05]} 19. Rhe1 {[%emt 0:00:54]} Rxe1 {[%emt 0:00:07]} 20. Rxe1 {[%emt 0:00:03]} Qd6 {[%emt 0:00:11]} 0-1

[Event "Gideon Japhet ACP Open 2018"]
[Site "Jerusalem"]
[Date "2018.07.06"]
[Round "7"]
[White "Friedland, Moshe"]
[Black "Erenberg, Ariel"]
[Result "1/2-1/2"]
[ECO "C54"]
[WhiteElo "2286"]
[BlackElo "2393"]
[Annotator "ChessBase"]
[PlyCount "73"]
[EventDate "2018.07.01"]
[EventType "swiss"]
[EventCountry "ISR"]
[SourceTitle "playchess.com"]
[Source "ChessBase"]
[SourceQuality "1"]
[TimeControl "40/5400+30:1800+30"]

1. e4 {[%emt 0:00:17]} e5 {[%emt 0:00:00]} 2. Nf3 {[%emt 0:00:09]} Nc6 {[%emt 0:00:00]} 3. Bc4 {[%emt 0:00:28]} Bc5 {[%emt 0:00:00]} 4. c3 {[%emt 0:00:32]} Nf6 {[%emt 0:00:00]} 5. d3 {[%emt 0:00:04]} d6 {[%emt 0:00:16]} 6. Nbd2 {[%emt 0:00:05]} O-O {[%emt 0:01:21]} 7. h3 {[%emt 0:00:18]} a5 {[%emt 0:02:18]} 8. O-O {[%emt 0:00:12]} h6 {[%emt 0:01:12]} 9. Re1 {[%emt 0:00:08]} Be6 {[%emt 0:00:06]} 10. Bb5 {[%emt 0:06:50]} Qb8 {[%emt 0:00:02]} 11. Nf1 {[%emt 0:02:10]} Qa7 {[%emt 0:05:49]} 12. Be3 {[%emt 0:00:27]} Bxe3 {[%emt 0:02:01]} 13. Nxe3 {[%emt 0:01:46]} Ne7 {[%emt 0:08:01]} 14. a4 {[%emt 0:18:40]} Ng6 {[%emt 0:05:11]} 15. Qc2 {[%emt 0:02:09]} c6 {[%emt 0:06:54]} 16. Bc4 {[%emt 0:00:05]} d5 {[%emt 0:00:20]} 17. exd5 {[%emt 0:02:09]} cxd5 {[%emt 0:01:58]} 18. Bb5 {[%emt 0:01:40]} Qb8 {[%emt 0:01:24]} 19. Qe2 {[%emt 0:06:29]} Nh5 {[%emt 0:05:44]} 20. g3 {[%emt 0:04:31]} Bxh3 {[%emt 0:21:14]} 21. Nxd5 {[%emt 0:04:13]} Qd6 {[%emt 0:03:41]} 22. c4 {[%emt 0:08:24]} Bg4 {[%emt 0:02:55]} 23. Qe3 {[%emt 0:00:52]} Bxf3 {[%emt 0:03:10]} 24. Qxf3 {[%emt 0:00:42]} Nf6 {[%emt 0:00:03]} 25. Nxf6+ {[%emt 0:01:39]} Qxf6 {[%emt 0:01:02]} 26. Qxf6 {[%emt 0:12:22]} gxf6 {[%emt 0:00:04]} 27. d4 {[%emt 0:01:26]} exd4 {[%emt 0:04:14]} 28. Rad1 {[%emt 0:00:13]} Ne5 {[%emt 0:05:06]} 29. Re4 {[%emt 0:00:43]} Rfd8 {[%emt 0:09:48]} 30. f4 {[%emt 0:02:21]} Nc6 {[%emt 0:00:37]} 31. Bxc6 {[%emt 0:00:31]} bxc6 {[%emt 0:00:01]} 32. Rexd4 {[%emt 0:00:08]} Rdb8 {[%emt 0:00:24]} 33. Rd6 {[%emt 0:04:02]} Rxb2 {[%emt 0:01:31]} 34. Rxf6 {[%emt 0:02:19]} Re8 {[%emt 0:00:50]} 35. Rxh6 {[%emt 0:04:51]} Re3 {[%emt 0:01:39]} 36. Kh1 {[%emt 0:01:35]} Rxg3 {[%emt 0:02:16]} 37. Rg1 {[%emt 0:02:29]} 1/2-1/2

[Event "Gideon Japhet ACP Open 2018"]
[Site "Jerusalem"]
[Date "2018.07.06"]
[Round "7"]
[White "Musyuk, Lior"]
[Black "Zilberman, Yaacov"]
[Result "1-0"]
[ECO "B02"]
[WhiteElo "2160"]
[BlackElo "2374"]
[Annotator "NA"]
[PlyCount "101"]
[EventDate "2018.07.01"]
[EventType "swiss"]
[EventCountry "ISR"]
[SourceTitle "playchess.com"]
[Source "ChessBase"]
[SourceQuality "1"]
[TimeControl "40/5400+30:1800+30"]

{[%evp 8,96,14,0,19,25,42,32767,49,99,29,57,70,71,59,36,102,87,111,118,113,109,128,126,125,135,117,102,114,101,32767,78,93,83,95,32767,75,58,58,45,51,7,0,32767,56,32767,32767,76,32767,32767,32767,32767,217,237,246,32767,32767,32767,256,32767,32767,32767,32767,32767,32767,32767,32767,32767,32767,342,302,32767,32767,32767,32767,32767,32767,32767,32767,32767,32767,32767,32767,32767,32767,32767,879,32767,32767,2005,1473]} 1. e4 {[%emt 0:00:00]} Nf6 {[%emt 0:00:00]} 2. e5 {[%emt 0:00:00]} Nd5 {[%emt 0:00:00]} 3. Nc3 {[%emt 0:00:01]} Nxc3 {[%emt 0:00:13]} 4. dxc3 {[%emt 0:00:30]} d6 {[%emt 0:00:48]} 5. Nf3 {[%emt 0:00:19]} Nc6 {[%emt 0:01:50]} 6. Bf4 {[%emt 0:02:23]} dxe5 {[%emt 0:03:00] LiveBook: 13 Games B02: Alekhine's Defence: Chase Variation and lines with early Nc3} 7. Nxe5 {[%emt 0:03:16]} (7. Qxd8+ Nxd8 8. Bxe5 c6 9. O-O-O f6 10. Bg3 Be6 11. Bd3 g6 12. Rhe1 Bf7 13. Nd4 a6 14. Nb3 a5 15. Kb1 Bd5 16. Bf1 {1-0 (48) Sebastian,D (2445)-Appel,R (2513) Germany 2016}) 7... Nxe5 {[%emt 0:01:57]} 8. Qxd8+ {[%emt 0:01:12]} Kxd8 {[%emt 0:00:03]} 9. Bxe5 {[%emt 0:00:02]} c6 {[%emt 0:06:54]} 10. O-O-O+ {[%emt 0:04:54]} Ke8 {[%emt 0:01:02]} 11. Bc4 {[%emt 0:04:11]} e6 $146 {[%emt 0:04:40]} ({Predecessor:} 11... Bf5 12. Rhe1 h5 13. Bd4 e6 14. Bd3 {½-½ (23) Gijbels,R-Van Espen,E (2154) Bilzen 2004}) 12. Rd2 {[%emt 0:03:43]} Rg8 {[%emt 0:01:20]} 13. Rhd1 {[%emt 0:03:55]} Be7 {[%emt 0:02:10]} 14. Bc7 {[%emt 0:03:12]} Rf8 {[%emt 0:00:58]} 15. f4 {[%emt 0:02:09]} f5 {[%emt 0:04:22]} 16. Be5 {[%emt 0:06:50]} Kf7 {[%emt 0:00:51]} 17. Kb1 {[%emt 0:02:02]} Re8 {[%emt 0:01:49]} 18. h3 {[%emt 0:08:57]} Bf6 {[%emt 0:04:19]} 19. Re1 {[%emt 0:13:24]} g6 {[%emt 0:06:01]} 20. g4 {[%emt 0:02:10]} b5 {[%emt 0:04:22]} 21. Bf1 {[%emt 0:09:51]} Bb7 {[%emt 0:02:24]} 22. Bxf6 {[%emt 0:02:44]} Kxf6 {[%emt 0:00:32]} 23. Rd7 {[%emt 0:00:08]} Re7 {[%emt 0:00:32]} 24. g5+ {[%emt 0:00:26]} Kf7 $1 {[%emt 0:00:17]} 25. Rd6 {[%emt 0:04:08]} Rc8 {[%emt 0:00:51]} (25... h6 $11) 26. a4 {[%emt 0:01:37]} a6 {[%emt 0:00:25]} 27. c4 {[%emt 0:00:59]} bxa4 {[%emt 0:03:24]} 28. c5 {[%emt 0:00:26]} Rcc7 {[%emt 0:00:17]} 29. Bc4 {[%emt 0:00:43]} Bc8 {[%emt 0:00:24]} 30. Ka2 {[%emt 0:01:02]} Re8 {[%emt 0:04:54]} 31. Re3 {[%emt 0:01:31]} Ree7 {[%emt 0:00:54]} 32. Ka3 {[%emt 0:01:15]} a5 {[%emt 0:00:23]} 33. Kxa4 {[%emt 0:02:01]} Ra7 {[%emt 0:00:21]} 34. Rb3 {[%emt 0:04:08]} Bb7 {[%emt 0:01:10]} 35. Rd8 {[%emt 0:01:21]} Kg7 {[%emt 0:05:07]} 36. Rbd3 {[%emt 0:04:51]} Ba6 {[%emt 0:02:23]} 37. Bxa6 {[%emt 0:01:16]} Rxa6 {[%emt 0:00:07]} 38. R3d7 {[%emt 0:01:11]} Kf7 {[%emt 0:01:23]} 39. Rxe7+ {[%emt 0:00:41]} Kxe7 {[%emt 0:00:02]} 40. Rd6 {[%emt 0:00:01]} Ra7 {[%emt 0:02:46]} 41. Rxc6 {[%emt 0:31:09]} Rd7 {[%emt 0:30:36]} 42. Kxa5 {[%emt 0:04:22]} Rd4 {[%emt 0:00:43]} 43. Rc7+ {[%emt 0:01:06]} Kd8 {[%emt 0:00:09]} 44. Rxh7 {[%emt 0:00:03]} Rxf4 {[%emt 0:00:07]} 45. b4 {[%emt 0:00:00]} Rc4 {[%emt 0:00:00]} 46. h4 {[%emt 0:00:00]} Ke8 {[%emt 0:00:00]} 47. Rg7 {[%emt 0:00:00]} Rxh4 {[%emt 0:00:00]} 48. c6 {[%emt 0:00:00]} Rc4 $18 {[%emt 0:00:00]} 49. c7 {[%emt 0:00:00]} e5 {[%emt 0:00:00]} 50. b5 {[%emt 0:00:00]} e4 {[%emt 0:00:00]} 51. b6 1-0

[Event "Gideon Japhet ACP Open 2018"]
[Site "Jerusalem"]
[Date "2018.07.06"]
[Round "7"]
[White "Itzhaky, Shmuel"]
[Black "Agrest, Inna"]
[Result "1-0"]
[ECO "A45"]
[WhiteElo "2111"]
[BlackElo "2303"]
[Annotator "NA"]
[PlyCount "149"]
[EventDate "2018.07.01"]
[EventType "swiss"]
[EventCountry "ISR"]
[SourceTitle "playchess.com"]
[Source "ChessBase"]
[SourceQuality "1"]
[TimeControl "40/5400+30:1800+30"]

{[%evp 8,149,26,7,36,29,29,16,25,17,21,0,33,48,53,43,83,46,77,31,32767,48,64,81,32767,65,32767,32767,32767,0,32767,32767,0,32767,32767,32767,32767,32767,32767,32767,32767,32767,32767,32767,32767,32767,32767,32767,32767,32767,32767,32767,32767,32767,32767,32767,101,32767,32767,32767,32767,32767,106,88,166,132,32767,32767,32767,32767,32767,32767,98,100,32767,32767,32767,128,32767,32767,32767,32767,643,32767,32767,718,622,32767,656,0,325,32767,0,0,8,8,8,0,0,0,0,0,32767,0,8,0,51,0,0,0,32767,58,58,58,1100,1152,12851,5873,29960,32767,32767,32767,11087,12839,4610,12359,29965,29966,29965,29970,29971,29963,5776,29976,29975,29978,29976,29980,29979,29981,32767,32767,32767,29982]} 1. d4 {[%emt 0:00:00]} Nf6 {[%emt 0:04:02]} 2. Bg5 {[%emt 0:00:00]} c5 {[%emt 0:00:53]} 3. Bxf6 {[%emt 0:00:02]} gxf6 {[%emt 0:00:19]} 4. dxc5 {[%emt 0:00:10]} Qa5+ {[%emt 0:02:13]} 5. Nc3 {[%emt 0:00:17] LiveBook: 11 Partien A45: Trompowsky Attack} Qxc5 {[%emt 0:01:28]} 6. e4 {[%emt 0:00:42]} Bg7 {[%emt 0:03:19]} 7. Qd5 $146 {[%emt 0:03:50]} ({Predecessor:} 7. Qf3 O-O 8. Bd3 Nc6 9. Nge2 d6 10. Nd5 Re8 11. O-O a5 12. Qg3 Ne5 {0-1 (72) Haubt,G (2300)-Schmidt,J (2155) Germany 1998}) 7... Qxd5 {[%emt 0:10:29]} 8. Nxd5 {[%emt 0:01:58]} Kd8 $1 {[%emt 0:00:10]} 9. f4 {[%emt 0:04:20]} d6 {[%emt 0:01:51]} 10. O-O-O {[%emt 0:03:08]} Bd7 {[%emt 0:08:10]} 11. Nf3 {[%emt 0:12:32]} Nc6 {[%emt 0:02:13]} 12. g3 {[%emt 0:04:01]} Rc8 {[%emt 0:02:08]} 13. Bb5 {[%emt 0:11:32]} h5 {[%emt 0:11:35]} 14. c3 {[%emt 0:05:36]} Bg4 {[%emt 0:08:33] [#]} 15. Be2 $1 {[%emt 0:02:34]} Na5 {[%emt 0:15:25]} 16. Ne3 {[%emt 0:03:50]} Be6 {[%emt 0:03:14]} 17. Rd4 {[%emt 0:07:10]} Nc6 {[%emt 0:03:52]} 18. Rd2 {[%emt 0:03:27]} Bxa2 {[%emt 0:02:51]} 19. Nf5 {[%emt 0:00:54]} Bf8 {[%emt 0:00:35]} 20. b4 {[%emt 0:07:54]} Be6 {[%emt 0:00:19]} 21. Kb2 {[%emt 0:01:03]} a6 {[%emt 0:06:13]} 22. N3d4 {[%emt 0:03:02]} Nxd4 {[%emt 0:00:40]} 23. Rxd4 {[%emt 0:00:59]} Bd7 {[%emt 0:01:04]} 24. Rhd1 {[%emt 0:04:55]} h4 {[%emt 0:04:02]} 25. Nxh4 {[%emt 0:06:18]} e5 {[%emt 0:00:12]} 26. fxe5 {[%emt 0:01:39]} fxe5 {[%emt 0:00:04]} 27. R4d2 {[%emt 0:00:29]} Be7 {[%emt 0:00:43]} 28. Bf3 {[%emt 0:02:10]} Ba4 {[%emt 0:02:59]} 29. Ra1 {[%emt 0:02:45]} Bb5 {[%emt 0:01:02]} 30. Nf5 {[%emt 0:00:31]} Bd7 {[%emt 0:01:31]} 31. h4 {[%emt 0:02:24]} Rg8 {[%emt 0:01:05]} 32. g4 {[%emt 0:01:39]} Bxf5 {[%emt 0:00:37]} 33. exf5 {[%emt 0:00:09]} e4 {[%emt 0:01:18]} 34. Bxe4 {[%emt 0:03:24]} Rxg4 {[%emt 0:00:06]} 35. Bxb7 {[%emt 0:00:16]} Rb8 {[%emt 0:00:08]} (35... Rxc3 $16 36. f6 (36. Kxc3 Bf6+ 37. Kb3 Bxa1 $16) (36. Rxa6 Rc7 $11) 36... Rh3 37. fxe7+ Kxe7) 36. Bxa6 {[%emt 0:00:55]} Rxh4 {[%emt 0:00:07]} 37. Rg1 {[%emt 0:00:48]} Kc7 {[%emt 0:00:43]} 38. Rd3 {[%emt 0:00:58]} Bf6 {[%emt 0:00:19]} 39. Kb3 {[%emt 0:00:36]} Rf4 {[%emt 0:00:30]} 40. Bc4 {[%emt 0:00:15]} Rxf5 {[%emt 0:01:10]} 41. Bxf7 {[%emt 0:30:11]} Rf2 {[%emt 0:03:08]} 42. Bd5 {[%emt 0:00:00]} Rh8 {[%emt 0:02:07]} 43. Ra1 {[%emt 0:00:00]} Rhh2 {[%emt 0:10:25]} 44. Ra7+ {[%emt 0:00:00]} Kb8 {[%emt 0:08:36]} 45. Rb7+ {[%emt 0:00:00]} Kc8 {[%emt 0:00:03] [#]} 46. Rg3 $1 {[%emt 0:00:00]} Rd2 {[%emt 0:05:53]} 47. Rg8+ {[%emt 0:00:00]} Bd8 {[%emt 0:00:05]} 48. c4 $2 {[%emt 0:00:00]} (48. Bc6 $18 Rb2+ 49. Kc4 d5+ 50. Bxd5 Rh4+ 51. Kc5) 48... Rd3+ {[%emt 0:03:10]} 49. Ka4 {[%emt 0:00:00]} Rxd5 $1 {[%emt 0:00:51]} 50. cxd5 {[%emt 0:00:00]} Kxb7 {[%emt 0:00:12]} 51. Rxd8 {[%emt 0:00:00]} Kc7 {[%emt 0:00:10]} 52. Rg8 {[%emt 0:00:00]} Rh5 {[%emt 0:01:35]} 53. Ka5 {[%emt 0:00:00]} Rxd5+ {[%emt 0:00:15]} 54. Ka6 {[%emt 0:00:00]} Rd1 {[%emt 0:00:55]} 55. Rg7+ {[%emt 0:00:00]} Kc8 {[%emt 0:00:52]} 56. b5 {[%emt 0:00:00]} Ra1+ {[%emt 0:00:34]} 57. Kb6 {[%emt 0:00:00]} d5 {[%emt 0:00:09]} 58. Rg5 {[%emt 0:01:06]} d4 {[%emt 0:00:20]} 59. Rc5+ $1 {[%emt 0:00:09]} Kb8 {[%emt 0:00:36]} 60. Rd5 {[%emt 0:00:09]} Kc8 $2 {[%emt 0:00:13]} (60... Rc1 $16 61. Rd8+ (61. Rxd4 Kc8 $16) 61... Rc8 62. Rxd4 Rg8) 61. Rxd4 {[%emt 0:00:07]} Rh1 {[%emt 0:01:19]} 62. Rg4 {[%emt 0:00:58]} Rh6+ {[%emt 0:00:29]} 63. Ka7 {[%emt 0:00:14]} Rh7+ {[%emt 0:00:14]} 64. Ka6 {[%emt 0:00:16]} (64. Ka8 Kc7) 64... Rh1 $2 {[%emt 0:00:59]} 65. Rg8+ {[%emt 0:00:44]} Kd7 {[%emt 0:00:27]} 66. b6 {[%emt 0:01:35]} Ra1+ {[%emt 0:00:19] [#]} 67. Kb7 $1 {[%emt 0:00:07]} Rb1 {[%emt 0:00:19]} 68. Rg2 {[%emt 0:00:56]} Rb3 {[%emt 0:01:00]} 69. Rd2+ {[%emt 0:00:40]} Ke6 {[%emt 0:00:11]} 70. Kc7 {[%emt 0:00:24]} Rc3+ {[%emt 0:00:12]} 71. Kb8 {[%emt 0:00:13]} Ke7 {[%emt 0:00:13]} 72. Ra2 {[%emt 0:02:24]} Kd8 {[%emt 0:00:35]} 73. b7 {[%emt 0:00:25]} Rb3 {[%emt 0:00:51]} 74. Ka8 {[%emt 0:00:13]} Kc7 {[%emt 0:00:31]} 75. Rc2+ {[%emt 0:00:07]} 1-0

[Event "Gideon Japhet ACP Open 2018"]
[Site "Jerusalem"]
[Date "2018.07.06"]
[Round "7"]
[White "Gorodetzky, Matan"]
[Black "Ushenina, Anna"]
[Result "0-1"]
[ECO "D05"]
[WhiteElo "2060"]
[BlackElo "2447"]
[Annotator "ChessBase"]
[PlyCount "88"]
[EventDate "2018.07.01"]
[EventType "swiss"]
[EventCountry "ISR"]
[SourceTitle "playchess.com"]
[Source "ChessBase"]
[SourceQuality "1"]
[TimeControl "40/5400+30:1800+30"]

1. Nf3 {[%emt 0:00:06]} d5 {[%emt 0:01:54]} 2. d4 {[%emt 0:01:25]} e6 {[%emt 0:00:44]} 3. e3 {[%emt 0:00:17]} Nf6 {[%emt 0:03:14]} 4. c4 {[%emt 0:00:30]} Bd6 {[%emt 0:01:24]} 5. cxd5 {[%emt 0:04:09]} exd5 {[%emt 0:00:13]} 6. Bd3 {[%emt 0:00:27]} O-O {[%emt 0:02:41]} 7. O-O {[%emt 0:01:06]} Re8 {[%emt 0:00:59]} 8. Nc3 {[%emt 0:01:00]} c6 {[%emt 0:05:58]} 9. Qc2 {[%emt 0:04:42]} Nbd7 {[%emt 0:04:51]} 10. b3 {[%emt 0:05:01]} Nf8 {[%emt 0:03:44]} 11. Bb2 {[%emt 0:06:04]} Bg4 {[%emt 0:01:43]} 12. Ne2 {[%emt 0:08:53]} Ng6 {[%emt 0:12:22]} 13. Ng3 {[%emt 0:08:09]} Bxf3 {[%emt 0:16:40]} 14. gxf3 {[%emt 0:00:21]} Nh4 {[%emt 0:00:27]} 15. f4 {[%emt 0:02:30]} g6 {[%emt 0:03:37]} 16. Kh1 {[%emt 0:03:32]} Qd7 {[%emt 0:06:28]} 17. f5 {[%emt 0:04:47]} Bxg3 {[%emt 0:07:40]} 18. fxg3 {[%emt 0:04:31]} Nxf5 {[%emt 0:00:11]} 19. Bxf5 {[%emt 0:00:12]} gxf5 {[%emt 0:00:04]} 20. Qxf5 {[%emt 0:03:10]} Qxf5 {[%emt 0:00:36]} 21. Rxf5 {[%emt 0:00:03]} Ne4 {[%emt 0:01:06]} 22. Raf1 {[%emt 0:02:55]} f6 {[%emt 0:00:18]} 23. g4 {[%emt 0:03:59]} Re6 {[%emt 0:01:13]} 24. Ba3 {[%emt 0:02:48]} Kg7 {[%emt 0:05:34]} 25. Kg2 {[%emt 0:01:08]} Rae8 {[%emt 0:04:42]} 26. h4 {[%emt 0:05:27]} a5 {[%emt 0:05:35]} 27. g5 {[%emt 0:11:52]} b5 {[%emt 0:00:23]} 28. gxf6+ {[%emt 0:02:49]} Rxf6 {[%emt 0:00:18]} 29. Rxf6 {[%emt 0:00:59]} Nxf6 {[%emt 0:00:01]} 30. Bd6 {[%emt 0:00:24]} Ng4 {[%emt 0:03:38]} 31. Kf3 {[%emt 0:00:38]} Nf6 {[%emt 0:06:36]} 32. Rc1 {[%emt 0:00:57]} Re6 {[%emt 0:00:32]} 33. Be5 {[%emt 0:07:46]} Kg6 {[%emt 0:00:27]} 34. Rg1+ {[%emt 0:01:23]} Kh5 {[%emt 0:00:28]} 35. Rg5+ {[%emt 0:02:02]} Kxh4 {[%emt 0:00:07]} 36. Rf5 {[%emt 0:00:25]} Ne4 {[%emt 0:00:13]} 37. Bf4 {[%emt 0:01:25]} h6 {[%emt 0:00:30]} 38. a4 {[%emt 0:00:28]} bxa4 {[%emt 0:00:06]} 39. bxa4 {[%emt 0:00:01]} Rg6 {[%emt 0:00:26]} 40. Rf8 {[%emt 0:00:30]} h5 {[%emt 0:01:16]} 41. Ra8 {[%emt 0:31:06]} Kh3 {[%emt 0:04:04]} 42. Rxa5 {[%emt 0:00:00]} Rg2 {[%emt 0:00:27]} 43. Bg3 {[%emt 0:00:00]} Rxg3+ {[%emt 0:01:27]} 44. Kf4 {[%emt 0:00:00]} Kg2 {[%emt 0:01:13]} 0-1

[Event "Gideon Japhet ACP Open 2018"]
[Site "Jerusalem"]
[Date "2018.07.06"]
[Round "7"]
[White "Pravdivetz, Vladimir"]
[Black "Zlatin, Alexander"]
[Result "0-1"]
[ECO "D55"]
[WhiteElo "1939"]
[BlackElo "2205"]
[Annotator "NA"]
[PlyCount "78"]
[EventDate "2018.07.01"]
[EventType "swiss"]
[EventCountry "ISR"]
[SourceTitle "playchess.com"]
[Source "ChessBase"]
[SourceQuality "1"]
[TimeControl "40/5400+30:1800+30"]

{[%evp 8,75,27,14,15,10,32767,25,12,8,18,32767,32767,0,6,0,15,8,4,-1,-4,0,0,0,29,7,6,3,0,0,-2,0,0,0,11,0,22,32767,32767,-33,32767,-7,-10,32767,32767,-125,-129,32767,32767,-274,32767,-401,32767,32767,32767,32767,32767,32767,-416,32767,32767,32767,32767,32767,32767,32767,32767,32767,32767,-999]} 1. d4 {[%emt 0:00:00]} Nf6 {[%emt 0:00:00]} 2. Nf3 {[%emt 0:00:00]} d5 {[%emt 0:00:15]} 3. c4 {[%emt 0:01:14]} e6 {[%emt 0:00:57]} 4. Nc3 {[%emt 0:00:29]} Be7 {[%emt 0:00:10]} 5. Bg5 {[%emt 0:01:04]} O-O {[%emt 0:00:19]} 6. e3 {[%emt 0:00:02]} b6 {[%emt 0:00:23]} 7. Bd3 {[%emt 0:05:01]} Bb7 {[%emt 0:00:11]} 8. Bxf6 {[%emt 0:00:14]} Bxf6 {[%emt 0:00:13]} 9. cxd5 {[%emt 0:00:23]} exd5 {[%emt 0:00:33]} 10. Qc2 {[%emt 0:03:10]} g6 {[%emt 0:01:00] LiveBook: 15 Games E12: Queen's Indian: Unusual White 4th moves, 4 a3, 4 Nc3 Bb7 5 a3 and 4 Nc3 Bb7} 11. b4 {[%emt 0:01:11]} c5 {[%emt 0:06:33]} 12. bxc5 {[%emt 0:00:03]} bxc5 {[%emt 0:00:03]} 13. Rb1 {[%emt 0:00:48]} cxd4 $146 {[%emt 0:11:21]} ({Predecessor:} 13... Bc6 14. O-O c4 15. Be2 Re8 16. Nd2 Na6 17. Bf3 Qd7 18. Qb2 {1-0 (38) Adianto,U (2589)-Eichab,C (2157) Turin 2006}) 14. Nxd4 {[%emt 0:01:13]} Bxd4 {[%emt 0:03:02]} 15. exd4 {[%emt 0:00:01]} Qe7+ {[%emt 0:01:41]} 16. Ne2 {[%emt 0:00:43]} Rc8 {[%emt 0:06:34]} 17. Qd2 {[%emt 0:00:29]} Ba6 {[%emt 0:00:18]} 18. Bxa6 {[%emt 0:01:40]} Nxa6 {[%emt 0:00:01]} 19. O-O {[%emt 0:00:18]} Nc7 {[%emt 0:08:24]} 20. Rb7 {[%emt 0:04:53]} Rcb8 {[%emt 0:03:04]} 21. Rfb1 {[%emt 0:04:21]} Rxb7 {[%emt 0:01:50]} 22. Rxb7 {[%emt 0:00:04]} Re8 {[%emt 0:01:10]} 23. Ng3 {[%emt 0:06:20]} Qd6 {[%emt 0:07:16]} 24. Nf1 {[%emt 0:06:34]} a6 {[%emt 0:02:06]} 25. Ne3 {[%emt 0:22:06]} Nb5 {[%emt 0:01:57]} 26. Qc1 {[%emt 0:09:20]} Nxd4 {[%emt 0:02:55]} 27. Rb2 {[%emt 0:00:48]} Ne6 {[%emt 0:03:25]} 28. Ng4 {[%emt 0:02:10]} (28. g3 $142) 28... Nf4 {[%emt 0:01:02]} 29. Qd1 {[%emt 0:01:43]} h5 {[%emt 0:01:30]} 30. Ne3 {[%emt 0:00:50]} Qe5 {[%emt 0:00:12]} 31. Rd2 {[%emt 0:00:24]} d4 {[%emt 0:00:34]} 32. Nc2 {[%emt 0:01:49]} d3 {[%emt 0:00:57]} 33. Ne3 {[%emt 0:00:05]} Rc8 {[%emt 0:00:46]} 34. Qe1 {[%emt 0:06:53]} Ne2+ {[%emt 0:06:27]} 35. Kh1 {[%emt 0:00:56]} Qa5 {[%emt 0:03:17]} 36. Rd1 {[%emt 0:00:24]} Qxe1+ {[%emt 0:00:32]} 37. Rxe1 {[%emt 0:00:01]} d2 {[%emt 0:00:09]} 38. Rd1 $19 {[%emt 0:02:33]} Rc1 {[%emt 0:00:23]} 39. g3 {[%emt 0:00:12]} Nc3 {[%emt 0:00:05]} 0-1